[Event "Athens of East GM-Open 2019"]
[Site "Madurai"]
[Date "2019.08.18"]
[Round "10.3"]
[White "Tukhaev, Adam"]
[Black "Gupta, Abhijeet"]
[Result "1-0"]
[ECO "D78"]
[WhiteElo "2541"]
[BlackElo "2603"]
[Annotator "ChessBase"]
[PlyCount "99"]
[EventDate "2019.08.11"]
[EventType "swiss"]
[EventCountry "IND"]
[SourceTitle "playchess.com"]
[Source "ChessBase"]
[SourceQuality "1"]
[TimeControl "5400+30"]

1. Nf3 {[%emt 0:00:00]} Nf6 {[%emt 0:00:00]} 2. g3 {[%emt 0:00:03]} g6 {[%emt 0:00:00]} 3. Bg2 {[%emt 0:00:05]} Bg7 {[%emt 0:00:00]} 4. O-O {[%emt 0:00:11]} O-O {[%emt 0:00:00]} 5. c4 {[%emt 0:02:27]} c6 {[%emt 0:02:23]} 6. d4 {[%emt 0:00:20]} d5 {[%emt 0:00:05]} 7. a4 {[%emt 0:00:07]} Bf5 {[%emt 0:00:59]} 8. Ne5 {[%emt 0:00:09]} Be6 {[%emt 0:14:20]} 9. Nd2 {[%emt 0:16:08]} dxc4 {[%emt 0:04:46]} 10. Ndxc4 {[%emt 0:01:52]} Nbd7 {[%emt 0:00:13]} 11. a5 {[%emt 0:05:53]} Rc8 {[%emt 0:07:45]} 12. Qa4 {[%emt 0:11:44]} Ng4 {[%emt 0:08:51]} 13. Nxd7 {[%emt 0:12:59]} Qxd7 {[%emt 0:01:18]} 14. Rd1 {[%emt 0:00:45]} Rfd8 {[%emt 0:02:27]} 15. Bf4 {[%emt 0:07:38]} h6 {[%emt 0:03:21]} 16. h3 {[%emt 0:00:06]} g5 {[%emt 0:05:01]} 17. hxg4 {[%emt 0:10:21]} Bxc4 {[%emt 0:00:07]} 18. Qxc4 {[%emt 0:00:11]} gxf4 {[%emt 0:00:03]} 19. gxf4 {[%emt 0:00:06]} Qxg4 {[%emt 0:00:27]} 20. e3 {[%emt 0:02:50]} Kh8 {[%emt 0:04:42]} 21. Kf1 {[%emt 0:02:02]} Rg8 {[%emt 0:01:46]} 22. Qe2 {[%emt 0:00:04]} Qg6 {[%emt 0:08:36]} 23. Qf3 {[%emt 0:00:23]} c5 {[%emt 0:00:24]} 24. Bh3 {[%emt 0:03:40]} Rb8 {[%emt 0:03:37]} 25. Rac1 {[%emt 0:05:43]} cxd4 {[%emt 0:00:33]} 26. e4 {[%emt 0:02:04]} Qa6+ {[%emt 0:01:20]} 27. Qd3 {[%emt 0:00:05]} Qxa5 {[%emt 0:06:00]} 28. e5 {[%emt 0:00:04]} Rbd8 {[%emt 0:00:56]} 29. Rc4 {[%emt 0:02:34]} Qa6 {[%emt 0:04:14]} 30. Rc7 {[%emt 0:02:02]} Qg6 {[%emt 0:09:29]} 31. Rxe7 {[%emt 0:02:31]} Qh5 {[%emt 0:02:50]} 32. Rxb7 {[%emt 0:00:58]} Rb8 {[%emt 0:00:03]} 33. Rxb8 {[%emt 0:01:12]} Rxb8 {[%emt 0:00:03]} 34. Bg2 {[%emt 0:00:22]} Rd8 {[%emt 0:02:15]} 35. Bf3 {[%emt 0:02:14]} Qh3+ {[%emt 0:01:45]} 36. Ke2 {[%emt 0:00:41]} Qe6 {[%emt 0:00:05]} 37. Ra1 {[%emt 0:01:28]} Qb6 {[%emt 0:02:21]} 38. b3 {[%emt 0:00:29]} a5 {[%emt 0:00:21]} 39. Rc1 {[%emt 0:00:14]} a4 {[%emt 0:03:10]} 40. bxa4 {[%emt 0:00:41]} Qb2+ {[%emt 0:00:04]} 41. Rc2 {[%emt 0:00:04]} Qa1 {[%emt 0:00:03]} 42. Bc6 {[%emt 0:01:34]} h5 {[%emt 0:01:28]} 43. Bb5 {[%emt 0:00:39]} Qg1 {[%emt 0:02:39]} 44. Qf5 {[%emt 0:00:25]} Qg4+ {[%emt 0:00:36]} 45. Qxg4 {[%emt 0:00:04]} hxg4 {[%emt 0:00:03]} 46. a5 {[%emt 0:01:18]} Bh6 {[%emt 0:00:46]} 47. a6 {[%emt 0:00:57]} Ra8 {[%emt 0:00:39]} 48. Rc7 {[%emt 0:01:17]} Bxf4 {[%emt 0:00:04]} 49. a7 {[%emt 0:00:06]} Bxe5 {[%emt 0:00:25]} 50. Rxf7 {[%emt 0:00:09]} 1-0

[Event "Athens of East GM-Open 2019"]
[Site "Madurai"]
[Date "2019.08.18"]
[Round "10.4"]
[White "Triapishko, Alexandr"]
[Black "Nitin, S.."]
[Result "1/2-1/2"]
[ECO "A45"]
[WhiteElo "2515"]
[BlackElo "2385"]
[Annotator "ChessBase"]
[PlyCount "141"]
[EventDate "2019.08.11"]
[EventType "swiss"]
[EventCountry "IND"]
[SourceTitle "playchess.com"]
[Source "ChessBase"]
[SourceQuality "1"]
[TimeControl "5400+30"]

1. d4 {[%emt 0:00:00]} Nf6 {[%emt 0:00:08]} 2. Bg5 {[%emt 0:00:00]} e6 {[%emt 0:05:19]} 3. e4 {[%emt 0:02:15]} h6 {[%emt 0:00:09]} 4. Bxf6 {[%emt 0:00:16]} Qxf6 {[%emt 0:00:09]} 5. c3 {[%emt 0:00:25]} d6 {[%emt 0:02:19]} 6. Bc4 {[%emt 0:02:00]} g6 {[%emt 0:00:42]} 7. Ne2 {[%emt 0:02:21]} Bg7 {[%emt 0:00:20]} 8. O-O {[%emt 0:02:24]} O-O {[%emt 0:00:56]} 9. f4 {[%emt 0:17:34]} Qe7 {[%emt 0:03:18]} 10. Qd3 {[%emt 0:19:30]} Nd7 {[%emt 0:17:13]} 11. Nd2 {[%emt 0:06:46]} c5 {[%emt 0:10:03]} 12. Rae1 {[%emt 0:16:41]} a6 {[%emt 0:09:05]} 13. a4 {[%emt 0:03:44]} b5 {[%emt 0:09:12]} 14. axb5 {[%emt 0:02:00]} Nb6 {[%emt 0:00:11]} 15. bxa6 {[%emt 0:12:12]} Nxc4 {[%emt 0:03:41]} 16. Nxc4 {[%emt 0:00:08]} cxd4 {[%emt 0:02:31]} 17. Nxd4 {[%emt 0:05:46]} Bxa6 {[%emt 0:00:51]} 18. b4 {[%emt 0:03:08]} Qc7 {[%emt 0:13:41]} 19. b5 {[%emt 0:00:12]} Bxd4+ {[%emt 0:00:12]} 20. Qxd4 {[%emt 0:00:07]} Bxb5 {[%emt 0:00:05]} 21. Nxd6 {[%emt 0:00:32]} Bxf1 {[%emt 0:00:14]} 22. Rxf1 {[%emt 0:01:25]} Qa7 {[%emt 0:01:52]} 23. Qxa7 {[%emt 0:01:21]} Rxa7 {[%emt 0:00:01]} 24. Kf2 {[%emt 0:00:39]} Rb8 {[%emt 0:01:10]} 25. Ke3 {[%emt 0:00:30]} Ra2 {[%emt 0:00:48]} 26. Rf2 {[%emt 0:00:31]} Rxf2 {[%emt 0:01:13]} 27. Kxf2 {[%emt 0:00:02]} Rb2+ {[%emt 0:00:02]} 28. Kf3 {[%emt 0:00:41]} Rb3 {[%emt 0:00:13]} 29. e5 {[%emt 0:00:45]} Rxc3+ {[%emt 0:00:06]} 30. Kg4 {[%emt 0:00:24]} Rc2 {[%emt 0:00:22]} 31. Kf3 {[%emt 0:00:37]} Kf8 {[%emt 0:01:14]} 32. Ne4 {[%emt 0:00:21]} Ke7 {[%emt 0:00:31]} 33. h4 {[%emt 0:00:36]} h5 {[%emt 0:00:26]} 34. g4 {[%emt 0:00:34]} hxg4+ {[%emt 0:03:06]} 35. Kxg4 {[%emt 0:00:01]} Rc1 {[%emt 0:00:34]} 36. Nf6 {[%emt 0:00:38]} Rg1+ {[%emt 0:00:11]} 37. Kf3 {[%emt 0:00:14]} Kd8 {[%emt 0:01:27]} 38. Ne4 {[%emt 0:00:45]} Ke7 {[%emt 0:02:13]} 39. Nf6 {[%emt 0:00:12]} Kf8 {[%emt 0:00:06]} 40. Kf2 {[%emt 0:00:32]} Ra1 {[%emt 0:00:12]} 41. Kg3 {[%emt 0:00:39]} Ra3+ {[%emt 0:00:09]} 42. Kg4 {[%emt 0:00:47]} Ra7 {[%emt 0:00:54]} 43. Kg5 {[%emt 0:00:35]} Ra1 {[%emt 0:00:42]} 44. Kg4 {[%emt 0:00:10]} Ke7 {[%emt 0:01:44]} 45. Kf3 {[%emt 0:00:45]} Kd8 {[%emt 0:00:18]} 46. Ne4 {[%emt 0:00:21]} Ra4 {[%emt 0:02:11]} 47. Ng5 {[%emt 0:00:52]} Ke7 {[%emt 0:00:35]} 48. Ne4 {[%emt 0:00:17]} f5 {[%emt 0:01:12]} 49. exf6+ {[%emt 0:00:18]} Kf7 {[%emt 0:00:02]} 50. Ke3 {[%emt 0:00:36]} Ra5 {[%emt 0:00:11]} 51. Kf3 {[%emt 0:00:49]} Ra3+ {[%emt 0:00:32]} 52. Kf2 {[%emt 0:00:12]} Rd3 {[%emt 0:02:50]} 53. Ke2 {[%emt 0:00:12]} Rd5 {[%emt 0:00:13]} 54. Kf3 {[%emt 0:00:32]} e5 {[%emt 0:01:06]} 55. fxe5 {[%emt 0:00:27]} Rxe5 {[%emt 0:00:08]} 56. Kf4 {[%emt 0:00:25]} Rf5+ {[%emt 0:00:14]} 57. Kg4 {[%emt 0:00:39]} Rf1 {[%emt 0:00:28]} 58. Kg5 {[%emt 0:01:01]} Rg1+ {[%emt 0:00:18]} 59. Kf4 {[%emt 0:00:07]} Ke6 {[%emt 0:00:20]} 60. Kf3 {[%emt 0:00:44]} Rf1+ {[%emt 0:01:07]} 61. Kg4 {[%emt 0:00:14]} Rg1+ {[%emt 0:00:26]} 62. Kf4 {[%emt 0:00:29]} Re1 {[%emt 0:00:44]} 63. Kf3 {[%emt 0:00:32]} Ra1 {[%emt 0:00:05]} 64. Kg4 {[%emt 0:00:51]} Ra4 {[%emt 0:00:11]} 65. Kf4 {[%emt 0:00:34]} Rb4 {[%emt 0:01:48]} 66. Kf3 {[%emt 0:00:24]} Rb1 {[%emt 0:00:22]} 67. Kf4 {[%emt 0:00:24]} Rg1 {[%emt 0:00:21]} 68. Kf3 {[%emt 0:00:11]} Rf1+ {[%emt 0:00:09]} 69. Kg4 {[%emt 0:00:21]} Rf5 {[%emt 0:00:39]} 70. f7 {[%emt 0:00:47]} Kxf7 {[%emt 0:01:44]} 71. Nd6+ {[%emt 0:00:04]} 1/2-1/2

[Event "Athens of East GM-Open 2019"]
[Site "Madurai"]
[Date "2019.08.18"]
[Round "10.5"]
[White "Laxman, R.R."]
[Black "Mosadeghpour, Masoud"]
[Result "1-0"]
[ECO "D77"]
[WhiteElo "2429"]
[BlackElo "2494"]
[Annotator "ChessBase"]
[PlyCount "53"]
[EventDate "2019.08.11"]
[EventType "swiss"]
[EventCountry "IND"]
[SourceTitle "playchess.com"]
[Source "ChessBase"]
[SourceQuality "1"]
[TimeControl "5400+30"]

1. d4 {[%emt 0:00:00]} Nf6 {[%emt 0:02:14]} 2. Nf3 {[%emt 0:00:00]} g6 {[%emt 0:00:15]} 3. g3 {[%emt 0:01:47]} Bg7 {[%emt 0:00:06]} 4. Bg2 {[%emt 0:00:13]} O-O {[%emt 0:00:06]} 5. O-O {[%emt 0:00:12]} d5 {[%emt 0:00:06]} 6. c4 {[%emt 0:00:39]} dxc4 {[%emt 0:00:06]} 7. Na3 {[%emt 0:00:06]} c3 {[%emt 0:00:04]} 8. bxc3 {[%emt 0:00:03]} c5 {[%emt 0:00:03]} 9. e3 {[%emt 0:00:27]} Nc6 {[%emt 0:00:32]} 10. Re1 {[%emt 0:00:30]} Bf5 {[%emt 0:02:15]} 11. Nc4 {[%emt 0:01:11]} cxd4 {[%emt 0:01:56]} 12. exd4 {[%emt 0:02:11]} Qc8 {[%emt 0:05:10]} 13. Bb2 {[%emt 0:02:43]} Rd8 {[%emt 0:04:29]} 14. Qe2 {[%emt 0:04:40]} Bh3 {[%emt 0:09:03]} 15. Bh1 {[%emt 0:01:50]} Be6 {[%emt 0:01:18]} 16. Ne3 {[%emt 0:06:00]} Na5 {[%emt 0:03:37]} 17. Ne5 {[%emt 0:03:16]} Nd7 {[%emt 0:18:17]} 18. Nxd7 {[%emt 0:01:44]} Qxd7 {[%emt 0:17:11]} 19. c4 {[%emt 0:04:05]} Bh3 {[%emt 0:11:41]} 20. d5 {[%emt 0:01:53]} Bxb2 {[%emt 0:00:25]} 21. Qxb2 {[%emt 0:00:07]} Rac8 {[%emt 0:00:30]} 22. Qd4 {[%emt 0:03:47]} b6 {[%emt 0:00:47]} 23. Qh4 {[%emt 0:00:36]} Bf5 {[%emt 0:12:59]} 24. Rad1 {[%emt 0:00:31]} h5 {[%emt 0:01:10]} 25. d6 {[%emt 0:00:32]} e6 {[%emt 0:05:12]} 26. Nxf5 {[%emt 0:00:08]} exf5 {[%emt 0:00:01]} 27. Qf6 {[%emt 0:02:08]} 1-0

[Event "Athens of East GM-Open 2019"]
[Site "Madurai"]
[Date "2019.08.18"]
[Round "10.6"]
[White "Vasquez Schroeder, Rodrigo"]
[Black "Muthaiah AL"]
[Result "1/2-1/2"]
[ECO "D91"]
[WhiteElo "2496"]
[BlackElo "2384"]
[Annotator "ChessBase"]
[PlyCount "60"]
[EventDate "2019.08.11"]
[EventType "swiss"]
[EventCountry "IND"]
[SourceTitle "playchess.com"]
[Source "ChessBase"]
[SourceQuality "1"]
[TimeControl "5400+30"]

1. d4 {[%emt 0:00:00]} Nf6 {[%emt 0:00:57]} 2. Nf3 {[%emt 0:00:16]} g6 {[%emt 0:00:34]} 3. c4 {[%emt 0:00:49]} Bg7 {[%emt 0:00:53]} 4. Nc3 {[%emt 0:00:25]} d5 {[%emt 0:01:04]} 5. Bg5 {[%emt 0:01:12]} Ne4 {[%emt 0:00:38]} 6. cxd5 {[%emt 0:00:26]} Nxg5 {[%emt 0:00:56]} 7. Nxg5 {[%emt 0:00:04]} e6 {[%emt 0:00:23]} 8. Nf3 {[%emt 0:01:52]} exd5 {[%emt 0:00:18]} 9. e3 {[%emt 0:00:12]} O-O {[%emt 0:03:21]} 10. b4 {[%emt 0:00:21]} c6 {[%emt 0:00:34]} 11. Be2 {[%emt 0:01:45]} Qd6 {[%emt 0:03:46]} 12. Qb3 {[%emt 0:01:14]} Be6 {[%emt 0:03:39]} 13. O-O {[%emt 0:00:44]} Nd7 {[%emt 0:01:07]} 14. a4 {[%emt 0:02:30]} a5 {[%emt 0:02:20]} 15. bxa5 {[%emt 0:01:17]} Rxa5 {[%emt 0:00:31]} 16. Rab1 {[%emt 0:00:56]} Bf5 {[%emt 0:08:36]} 17. Rb2 {[%emt 0:01:20]} b5 {[%emt 0:09:29]} 18. Rc1 {[%emt 0:36:55]} bxa4 {[%emt 0:03:40]} 19. Nxa4 {[%emt 0:00:16]} Rfa8 {[%emt 0:06:38]} 20. Ra2 {[%emt 0:08:41]} Qb8 {[%emt 0:06:22]} 21. Qxb8+ {[%emt 0:04:48]} Nxb8 {[%emt 0:00:13]} 22. Bd1 {[%emt 0:01:35]} Bf8 {[%emt 0:06:07]} 23. Rca1 {[%emt 0:06:27]} Bb4 {[%emt 0:03:49]} 24. Bb3 {[%emt 0:01:18]} Nd7 {[%emt 0:02:33]} 25. h3 {[%emt 0:01:31]} Kf8 {[%emt 0:04:28]} 26. Nb2 {[%emt 0:15:30]} Rb8 {[%emt 0:15:34]} 27. Na4 {[%emt 0:04:06]} Rba8 {[%emt 0:01:35]} 28. Nb2 {[%emt 0:00:19]} Rb8 {[%emt 0:08:25]} 29. Na4 {[%emt 0:00:48]} Rba8 {[%emt 0:00:04]} 30. Nb2 {[%emt 0:00:08]} Rb8 {[%emt 0:00:03]} 1/2-1/2

[Event "Athens of East GM-Open 2019"]
[Site "Madurai"]
[Date "2019.08.18"]
[Round "10.7"]
[White "Shyaamnikhil P"]
[Black "Lokesh, N.."]
[Result "1-0"]
[ECO "E06"]
[WhiteElo "2456"]
[BlackElo "2202"]
[Annotator "ChessBase"]
[PlyCount "131"]
[EventDate "2019.08.11"]
[EventType "swiss"]
[EventCountry "IND"]
[SourceTitle "playchess.com"]
[Source "ChessBase"]
[SourceQuality "1"]
[TimeControl "5400+30"]

1. g3 {[%emt 0:00:15]} Nf6 {[%emt 0:00:00]} 2. Bg2 {[%emt 0:00:15]} d5 {[%emt 0:00:00]} 3. c4 {[%emt 0:02:05]} e6 {[%emt 0:00:00]} 4. d4 {[%emt 0:02:07]} Be7 {[%emt 0:00:18]} 5. Nc3 {[%emt 0:01:15]} O-O {[%emt 0:00:11]} 6. Nf3 {[%emt 0:00:13]} c6 {[%emt 0:02:20]} 7. O-O {[%emt 0:02:25]} b6 {[%emt 0:00:10]} 8. Ne5 {[%emt 0:00:26]} Bb7 {[%emt 0:01:45]} 9. e4 {[%emt 0:01:00]} Na6 {[%emt 0:36:01]} 10. a3 {[%emt 0:09:27]} dxc4 {[%emt 0:17:27]} 11. Nxc4 {[%emt 0:02:24]} c5 {[%emt 0:01:48]} 12. d5 {[%emt 0:00:31]} b5 {[%emt 0:16:02]} 13. Nxb5 {[%emt 0:11:50]} exd5 {[%emt 0:01:32]} 14. e5 {[%emt 0:21:33]} Ne4 {[%emt 0:02:18]} 15. Bxe4 {[%emt 0:00:31]} dxe4 {[%emt 0:00:10]} 16. Nbd6 {[%emt 0:00:04]} Bc6 {[%emt 0:01:53]} 17. Qg4 {[%emt 0:02:28]} Qd7 {[%emt 0:07:45]} 18. Nf5 {[%emt 0:07:54]} g6 {[%emt 0:00:09]} 19. Nxe7+ {[%emt 0:00:30]} Qxe7 {[%emt 0:00:03]} 20. Bh6 {[%emt 0:01:58]} Rfb8 {[%emt 0:01:53]} 21. Rad1 {[%emt 0:02:56]} Nc7 {[%emt 0:04:45]} 22. Rd6 {[%emt 0:00:46]} Bb5 {[%emt 0:00:44]} 23. Qxe4 {[%emt 0:02:45]} Bxc4 {[%emt 0:00:19]} 24. Qxc4 {[%emt 0:00:06]} Qxe5 {[%emt 0:00:23]} 25. Rd7 {[%emt 0:04:01]} Ne6 {[%emt 0:03:26]} 26. Bf4 {[%emt 0:00:10]} Qxb2 {[%emt 0:00:06]} 27. Bxb8 {[%emt 0:00:04]} Rxb8 {[%emt 0:01:16]} 28. Rxa7 {[%emt 0:00:23]} Rb3 {[%emt 0:00:26]} 29. Qd5 {[%emt 0:03:49]} Qc3 {[%emt 0:00:44]} 30. a4 {[%emt 0:04:41]} Rb2 {[%emt 0:00:20]} 31. h4 {[%emt 0:05:21]} Rd2 {[%emt 0:00:13]} 32. Qe4 {[%emt 0:02:21]} Qf6 {[%emt 0:00:46]} 33. Qe3 {[%emt 0:00:44]} Nd4 {[%emt 0:00:34]} 34. Qe8+ {[%emt 0:06:02]} Kg7 {[%emt 0:00:07]} 35. Ra8 {[%emt 0:00:07]} Nf3+ {[%emt 0:00:59]} 36. Kh1 {[%emt 0:00:34]} Qd6 {[%emt 0:00:30]} 37. Qh8+ {[%emt 0:01:43]} Kh6 {[%emt 0:00:03]} 38. Qf8+ {[%emt 0:00:07]} Qxf8 {[%emt 0:00:29]} 39. Rxf8 {[%emt 0:00:05]} Kg7 {[%emt 0:00:13]} 40. Rc8 {[%emt 0:00:13]} Ra2 {[%emt 0:01:13]} 41. Kg2 {[%emt 0:01:13]} Nd4 {[%emt 0:00:32]} 42. Rxc5 {[%emt 0:00:13]} Rxa4 {[%emt 0:00:02]} 43. Rc7 {[%emt 0:00:10]} h5 {[%emt 0:00:58]} 44. Rd1 {[%emt 0:01:58]} Rb4 {[%emt 0:00:34]} 45. Ra7 {[%emt 0:00:08]} Rc4 {[%emt 0:00:21]} 46. Rd3 {[%emt 0:00:35]} Rb4 {[%emt 0:00:22]} 47. Kh3 {[%emt 0:00:29]} Nc6 {[%emt 0:00:46]} 48. Rc7 {[%emt 0:00:40]} Ne5 {[%emt 0:00:08]} 49. Ra3 {[%emt 0:00:25]} Rb2 {[%emt 0:00:31]} 50. Kg2 {[%emt 0:00:41]} Rd2 {[%emt 0:00:26]} 51. Raa7 {[%emt 0:00:24]} Rb2 {[%emt 0:00:45]} 52. Rab7 {[%emt 0:01:10]} Ra2 {[%emt 0:00:11]} 53. Re7 {[%emt 0:00:39]} Kf6 {[%emt 0:00:46]} 54. Ra7 {[%emt 0:00:07]} Rb2 {[%emt 0:00:17]} 55. Reb7 {[%emt 0:00:13]} Rc2 {[%emt 0:00:07]} 56. Kf1 {[%emt 0:00:11]} Kf5 {[%emt 0:01:15]} 57. Ra4 {[%emt 0:01:31]} Kf6 {[%emt 0:00:33]} 58. Rf4+ {[%emt 0:00:39]} Kg7 {[%emt 0:00:27]} 59. Re7 {[%emt 0:00:23]} Rc5 {[%emt 0:00:09]} 60. Ke2 {[%emt 0:00:39]} Kf8 {[%emt 0:00:09]} 61. Ra7 {[%emt 0:00:11]} Rc2+ {[%emt 0:00:30]} 62. Ke3 {[%emt 0:00:47]} Kg7 {[%emt 0:01:10]} 63. Rb7 {[%emt 0:00:06]} Kh6 {[%emt 0:00:27]} 64. Kd4 {[%emt 0:00:54]} Re2 {[%emt 0:00:36]} 65. Kd5 {[%emt 0:00:13]} f5 {[%emt 0:00:33]} 66. Re7 {[%emt 0:00:13]} 1-0

[Event "Athens of East GM-Open 2019"]
[Site "Madurai"]
[Date "2019.08.18"]
[Round "10.8"]
[White "Raja Rithvik R"]
[Black "Rajesh, V A V"]
[Result "1/2-1/2"]
[ECO "A39"]
[WhiteElo "2357"]
[BlackElo "2368"]
[Annotator "NA"]
[PlyCount "122"]
[EventDate "2019.08.11"]
[EventType "swiss"]
[EventCountry "IND"]
[SourceTitle "playchess.com"]
[Source "ChessBase"]
[SourceQuality "1"]
[TimeControl "5400+30"]

1. Nf3 {[%emt 0:00:00]} Nf6 {[%emt 0:00:00]} 2. c4 {[%emt 0:00:02]} c5 {[%emt 0:00:00]} 3. Nc3 {[%emt 0:00:07]} Nc6 {[%emt 0:00:00]} 4. d4 {[%emt 0:00:18]} cxd4 {[%emt 0:00:00]} 5. Nxd4 {[%emt 0:00:06]} g6 {[%emt 0:00:01]} 6. g3 {[%emt 0:00:09]} Bg7 {[%emt 0:01:24]} 7. Bg2 {[%emt 0:00:07]} O-O {[%emt 0:00:33]} 8. O-O {[%emt 0:00:05]} Qa5 {[%emt 0:04:49]} 9. Nb3 {[%emt 0:00:06]} Qh5 {[%emt 0:17:37]} 10. c5 {[%emt 0:00:06] A39: Symmetrical English vs ...g6: 4 Bg2 Bg7 5 Nf3 Nf6 6 0-0 0-0 7 d4} d6 {[%emt 0:05:22]} (10... a5 11. Na4 d6 12. Nb6 Ra6 13. Nxc8 Rxc8 14. cxd6 exd6 15. a4 Rb6 16. h3 Qe5 17. Be3 Ra6 {0-1 (50) Nyzhnyk,I (2638)-So,W (2762) chess.com INT 2019}) 11. cxd6 {[%emt 0:00:06]} Rd8 {[%emt 0:00:11]} 12. e4 {[%emt 0:00:04]} Bg4 {[%emt 0:03:09]} 13. f3 {[%emt 0:00:10]} Be6 {[%emt 0:02:49]} 14. Qe1 {[%emt 0:00:05]} Bxb3 $146 {[%emt 0:03:03]} ({Predecessor:} 14... Bc4 15. dxe7 Nxe7 16. Rf2 Nd7 17. h4 h6 {1-0 (30) Privara,I (2516)-Cardelli,G (2440) ICCF email 2013}) 15. dxe7 {[%emt 0:00:26]} ({Much worse is} 15. axb3 $6 Qc5+ 16. Qf2 Qxf2+ 17. Kxf2 Rxd6 $11) 15... Qc5+ {[%emt 0:01:06]} 16. Be3 {[%emt 0:00:31]} Qxe7 {[%emt 0:00:19]} 17. axb3 {[%emt 0:00:03]} Qb4 {[%emt 0:01:54]} 18. Qe2 {[%emt 0:11:08]} Qxb3 {[%emt 0:02:08]} 19. Rfd1 {[%emt 0:00:04]} a6 {[%emt 0:19:40]} 20. f4 {[%emt 0:03:52]} Ne8 {[%emt 0:01:16]} 21. e5 {[%emt 0:06:43]} Nc7 {[%emt 0:00:48]} 22. Ne4 {[%emt 0:05:44]} Ne6 {[%emt 0:02:28]} 23. Nd6 {[%emt 0:02:46]} Rd7 {[%emt 0:01:12]} 24. Ra3 {[%emt 0:22:11]} Qb4 {[%emt 0:00:14]} 25. Rad3 {[%emt 0:12:16]} Rad8 {[%emt 0:05:31]} 26. Qd2 {[%emt 0:07:06]} Bf8 {[%emt 0:02:45]} 27. Qxb4 {[%emt 0:02:01]} Nxb4 {[%emt 0:00:04]} 28. R3d2 {[%emt 0:01:00]} Bxd6 {[%emt 0:01:29]} 29. exd6 {[%emt 0:00:16]} Rc8 {[%emt 0:00:25]} 30. Bb6 {[%emt 0:04:32]} Rc4 {[%emt 0:00:44]} 31. Ba5 $16 {[%emt 0:03:43]} Nc2 {[%emt 0:07:36]} 32. Bd5 {[%emt 0:08:50]} Ne3 {[%emt 0:00:28]} 33. Bxc4 {[%emt 0:01:47]} Nxc4 {[%emt 0:00:05]} 34. Bc3 {[%emt 0:01:20]} Nxd2 {[%emt 0:00:07]} 35. Rxd2 {[%emt 0:00:01]} f5 {[%emt 0:00:14]} 36. Be5 {[%emt 0:00:38]} Kf7 {[%emt 0:00:30]} 37. Rc2 {[%emt 0:01:58]} Nd8 {[%emt 0:00:39]} 38. Rc8 {[%emt 0:02:45]} Ke6 {[%emt 0:00:14]} 39. h4 {[%emt 0:00:25]} Nf7 {[%emt 0:01:24]} 40. Re8+ {[%emt 0:00:49]} Kd5 {[%emt 0:00:11]} 41. h5 {[%emt 0:00:16]} gxh5 {[%emt 0:00:49]} 42. Kg2 {[%emt 0:01:18]} h6 {[%emt 0:13:04]} 43. Kh3 {[%emt 0:01:55]} Nxd6 {[%emt 0:00:22]} 44. Bxd6 {[%emt 0:00:06]} Rxd6 {[%emt 0:00:03]} 45. Re5+ {[%emt 0:00:04]} Kc4 {[%emt 0:00:12]} 46. Rxf5 {[%emt 0:00:02]} Kb3 {[%emt 0:00:13]} 47. Kh4 {[%emt 0:01:15]} Kxb2 {[%emt 0:00:12]} 48. Kxh5 {[%emt 0:00:17]} b5 {[%emt 0:01:21]} 49. g4 {[%emt 0:00:02]} b4 {[%emt 0:00:42]} 50. g5 {[%emt 0:00:02]} hxg5 {[%emt 0:01:08]} 51. fxg5 {[%emt 0:00:01]} b3 {[%emt 0:02:15]} 52. g6 {[%emt 0:01:05]} Rd8 {[%emt 0:01:22]} 53. Ra5 {[%emt 0:01:16]} Rh8+ {[%emt 0:01:19]} 54. Kg5 {[%emt 0:00:05]} Ra8 {[%emt 0:00:37]} 55. g7 {[%emt 0:00:17]} Rg8 {[%emt 0:00:29]} 56. Kf6 {[%emt 0:00:10]} Kc3 {[%emt 0:00:06]} 57. Rxa6 {[%emt 0:00:09]} b2 {[%emt 0:00:05]} 58. Rb6 {[%emt 0:00:03]} Kc2 {[%emt 0:00:13]} 59. Kf7 {[%emt 0:00:04]} Rxg7+ {[%emt 0:00:04]} 60. Kxg7 {[%emt 0:00:05]} b1=Q {[%emt 0:00:40]} 61. Rxb1 {[%emt 0:00:30]} Kxb1 {[%emt 0:00:30]} 1/2-1/2